[Event "*** Titled Tuesday 3|2 Blitz"]
[Site "Chess.com"]
[Date "2015.11.03"]
[Round "1"]
[White "ItalianMachine"]
[Black "Noukii"]
[Result "0-1"]
[WhiteElo "2253"]
[BlackElo "2630"]
[TimeControl "180+2"]
[EndTime "17:09:50 PST"]
[Termination "Noukii won by resignation"]

1. e4 {[%clk 0:02:59.5]} 1... Nf6 {[%clk 0:02:25.9]} 2. e5 {[%clk 0:02:50.2]}
2... Nd5 {[%clk 0:02:26.9]} 3. d4 {[%clk 0:02:51.6]} 3... d6 {[%clk 0:02:28.1]}
4. Nf3 {[%clk 0:02:52.4]} 4... g6 {[%clk 0:02:29.2]} 5. Bc4 {[%clk 0:02:49.9]}
5... Nb6 {[%clk 0:02:30.8]} 6. Bb3 {[%clk 0:02:51.1]} 6... Bg7 {[%clk
0:02:32.7]} 7. O-O {[%clk 0:02:51.2]} 7... O-O {[%clk 0:02:33]} 8. h3 {[%clk
0:02:52.1]} 8... Nc6 {[%clk 0:02:33.9]} 9. exd6 {[%clk 0:02:52.4]} 9... cxd6
{[%clk 0:02:34.1]} 10. c3 {[%clk 0:02:52.9]} 10... h6 {[%clk 0:02:35.6]} 11. Re1
{[%clk 0:02:51.5]} 11... e5 {[%clk 0:02:36.2]} 12. Na3 {[%clk 0:02:28.1]} 12...
a6 {[%clk 0:02:26.5]} 13. dxe5 {[%clk 0:02:22.7]} 13... dxe5 {[%clk 0:02:28.4]}
14. Be3 {[%clk 0:02:23.3]} 14... Qc7 {[%clk 0:02:27.3]} 15. Nc4 {[%clk
0:02:01.5]} 15... Nxc4 {[%clk 0:02:24.7]} 16. Bxc4 {[%clk 0:02:02.7]} 16... Bf5
{[%clk 0:02:18.9]} 17. Qe2 {[%clk 0:01:50.8]} 17... Rad8 {[%clk 0:02:16.6]} 18.
Rad1 {[%clk 0:01:51.4]} 18... Kh7 {[%clk 0:02:03.2]} 19. Bd5 {[%clk 0:01:47.1]}
19... Rd7 {[%clk 0:01:48]} 20. Nh4 {[%clk 0:01:39.5]} 20... Rfd8 {[%clk
0:01:26]} 21. Bb3 {[%clk 0:01:29.7]} 21... Rxd1 {[%clk 0:01:24.8]} 22. Rxd1
{[%clk 0:01:30.6]} 22... Rxd1+ {[%clk 0:01:20]} 23. Qxd1 {[%clk 0:01:32.1]}
23... Bc8 {[%clk 0:01:21.4]} 24. g4 {[%clk 0:01:05.1]} 24... Qe7 {[%clk
0:01:16.8]} 25. Nf3 {[%clk 0:00:54.3]} 25... e4 {[%clk 0:01:03]} 26. Nd2 {[%clk
0:00:49.9]} 26... Ne5 {[%clk 0:01:02.3]} 27. Nxe4 {[%clk 0:00:47.3]} 27... Nxg4
{[%clk 0:01:03.4]} 28. Ng5+ {[%clk 0:00:45.8]} 28... hxg5 {[%clk 0:01:03.6]} 29.
hxg4 {[%clk 0:00:47]} 29... Bf6 {[%clk 0:00:59.1]} 30. Qf3 {[%clk 0:00:43]}
30... Kg7 {[%clk 0:00:58.2]} 31. Kg2 {[%clk 0:00:40.5]} 31... Qd7 {[%clk
0:00:53.4]} 32. Kh3 {[%clk 0:00:36.5]} 32... b5 {[%clk 0:00:46.6]} 33. Bd5
{[%clk 0:00:34.2]} 33... Qe7 {[%clk 0:00:42]} 34. Kg2 {[%clk 0:00:32.2]} 34...
Bd7 {[%clk 0:00:32]} 35. Kh3 {[%clk 0:00:32.9]} 35... Be8 {[%clk 0:00:25.8]} 36.
Qxf6+ {[%clk 0:00:24.9]} 36... Qxf6 {[%clk 0:00:26]} 37. Bd4 {[%clk 0:00:26.5]}
37... Qxd4 {[%clk 0:00:27.3]} 38. cxd4 {[%clk 0:00:28.3]} 38... f5 {[%clk
0:00:25.8]} 39. Kg3 {[%clk 0:00:26.9]} 39... Kf6 {[%clk 0:00:25.1]} 40. Bb7
{[%clk 0:00:27]} 40... a5 {[%clk 0:00:25]} 41. f3 {[%clk 0:00:26.7]} 41... Ke7
{[%clk 0:00:25.4]} 42. Bd5 {[%clk 0:00:16.5]} 42... Kd6 {[%clk 0:00:26]} 43. Bb3
{[%clk 0:00:18.1]} 43... a4 {[%clk 0:00:23.8]} 44. Bg8 {[%clk 0:00:19.6]} 44...
b4 {[%clk 0:00:23.7]} 45. Kf2 {[%clk 0:00:20.8]} 45... Bc6 {[%clk 0:00:20.3]}
46. Ke2 {[%clk 0:00:21.9]} 46... f4 {[%clk 0:00:19.5]} 47. Bf7 {[%clk
0:00:22.5]} 47... a3 {[%clk 0:00:17.9]} 48. bxa3 {[%clk 0:00:22.9]} 48... bxa3
{[%clk 0:00:18.8]} 49. Bxg6 {[%clk 0:00:24.3]} 49... Bb5+ {[%clk 0:00:16]} 50.
Bd3 {[%clk 0:00:24.7]} 50... Bd7 {[%clk 0:00:15.9]} 51. Kd2 {[%clk 0:00:25.7]}
51... Bc6 {[%clk 0:00:15.6]} 52. Be4 {[%clk 0:00:26]} 52... Bd7 {[%clk
0:00:16.9]} 53. Kc3 {[%clk 0:00:26.9]} 53... Be6 {[%clk 0:00:16]} 54. d5 {[%clk
0:00:24.4]} 54... Bxd5 {[%clk 0:00:11.5]} 55. Bxd5 {[%clk 0:00:25.6]} 55... Kxd5
{[%clk 0:00:13.4]} 56. Kb3 {[%clk 0:00:27.3]} 56... Kd4 {[%clk 0:00:14.3]} 57.
Kxa3 {[%clk 0:00:28.7]} 57... Ke3 {[%clk 0:00:16.2]} 58. Kb4 {[%clk 0:00:30.6]}
58... Kxf3 {[%clk 0:00:18.1]} 59. a4 {[%clk 0:00:32.5]} 59... Kxg4 {[%clk
0:00:18]} 60. a5 {[%clk 0:00:34.4]} 60... f3 {[%clk 0:00:19.9]} 61. a6 {[%clk
0:00:36.3]} 61... f2 {[%clk 0:00:21.4]} 62. a7 {[%clk 0:00:38.2]} 62... f1=Q
{[%clk 0:00:23.1]} 63. a8=Q {[%clk 0:00:40.1]} 63... Qf4+ {[%clk 0:00:24.6]} 64.
Kc3 {[%clk 0:00:41.1]} 64... Qf3+ {[%clk 0:00:25.7]} 65. Qxf3+ {[%clk
0:00:41.7]} 65... Kxf3 {[%clk 0:00:27.6]} 66. Kd2 {[%clk 0:00:43.4]} 66... Kf2
{[%clk 0:00:28.9]} 0-1

[Event "*** Titled Tuesday 3|2 Blitz"]
[Site "Chess.com"]
[Date "2015.11.03"]
[Round "1"]
[White "bugsbunny444"]
[Black "gauranga"]
[Result "1/2-1/2"]
[WhiteElo "2335"]
[BlackElo "2056"]
[TimeControl "180+2"]
[EndTime "17:10:58 PST"]
[Termination "Game drawn by repetition"]

1. Nf3 {[%clk 0:03:01.2]} 1... b6 {[%clk 0:03:00]} 2. g3 {[%clk 0:03:02.2]} 2...
Bb7 {[%clk 0:03:01.3]} 3. Bg2 {[%clk 0:03:03.7]} 3... e6 {[%clk 0:03:02.9]} 4.
O-O {[%clk 0:03:05.1]} 4... f5 {[%clk 0:03:04.1]} 5. d4 {[%clk 0:02:58.4]} 5...
Nf6 {[%clk 0:03:05]} 6. c4 {[%clk 0:02:59.4]} 6... g6 {[%clk 0:03:05.5]} 7. Nc3
{[%clk 0:02:48.8]} 7... Bb4 {[%clk 0:03:05.1]} 8. Bh6 {[%clk 0:02:36.6]} 8...
Ng4 {[%clk 0:02:55]} 9. Bg5 {[%clk 0:02:34.3]} 9... Be7 {[%clk 0:02:55.9]} 10.
Bxe7 {[%clk 0:02:29]} 10... Qxe7 {[%clk 0:02:56.6]} 11. h3 {[%clk 0:02:21.6]}
11... Nf6 {[%clk 0:02:57.1]} 12. Nb5 {[%clk 0:01:54.9]} 12... d6 {[%clk
0:02:55.6]} 13. Re1 {[%clk 0:01:33.1]} 13... a6 {[%clk 0:02:54.9]} 14. Nc3
{[%clk 0:01:34.6]} 14... O-O {[%clk 0:02:55.5]} 15. d5 {[%clk 0:01:31.9]} 15...
exd5 {[%clk 0:02:24.4]} 16. cxd5 {[%clk 0:01:25.9]} 16... Nbd7 {[%clk 0:01:25]}
17. Nd4 {[%clk 0:01:22.9]} 17... Nc5 {[%clk 0:01:25.9]} 18. b4 {[%clk 0:00:56]}
18... Nce4 {[%clk 0:01:26.8]} 19. Nxe4 {[%clk 0:00:57]} 19... Nxe4 {[%clk
0:01:25.1]} 20. Ne6 {[%clk 0:00:57.9]} 20... Rfe8 {[%clk 0:01:22.3]} 21. Rc1
{[%clk 0:00:56.3]} 21... Rac8 {[%clk 0:01:19.8]} 22. Qd4 {[%clk 0:00:35.9]}
22... Bxd5 {[%clk 0:00:44.2]} 23. Rxc7 {[%clk 0:00:34.4]} 23... Rxc7 {[%clk
0:00:45.5]} 24. Nxc7 {[%clk 0:00:35.5]} 24... Qxc7 {[%clk 0:00:46.7]} 25. Qxd5+
{[%clk 0:00:35.9]} 25... Qf7 {[%clk 0:00:47.7]} 26. Bxe4 {[%clk 0:00:31.8]}
26... Rxe4 {[%clk 0:00:37.6]} 27. Qxd6 {[%clk 0:00:28]} 27... Qxa2 {[%clk
0:00:30.4]} 28. Qxb6 {[%clk 0:00:11.2]} 28... Rxe2 {[%clk 0:00:19.2]} 29. Qd8+
{[%clk 0:00:08.4]} 29... Kf7 {[%clk 0:00:16.1]} 30. Qd7+ {[%clk 0:00:05.7]}
30... Kg8 {[%clk 0:00:15.6]} 31. Qd8+ {[%clk 0:00:04.2]} 31... Kf7 {[%clk
0:00:16.4]} 32. Qd7+ {[%clk 0:00:04.5]} 32... Kg8 {[%clk 0:00:17.5]} 33. Rxe2
{[%clk 0:00:05.1]} 33... Qxe2 {[%clk 0:00:17.8]} 34. Qc8+ {[%clk 0:00:05.2]}
34... Kg7 {[%clk 0:00:17.5]} 35. Qc7+ {[%clk 0:00:06]} 35... Kg8 {[%clk
0:00:18.8]} 36. Qc8+ {[%clk 0:00:07]} 36... Kg7 {[%clk 0:00:20]} 37. Qb7+ {[%clk
0:00:08.4]} 37... Kg8 {[%clk 0:00:20.3]} 38. h4 {[%clk 0:00:09.7]} 38... Qd3
{[%clk 0:00:10.5]} 39. Qc8+ {[%clk 0:00:07.2]} 39... Kg7 {[%clk 0:00:11.3]} 40.
Qb7+ {[%clk 0:00:07.8]} 40... Kg8 {[%clk 0:00:12.6]} 41. Kg2 {[%clk 0:00:09]}
41... Qe2 {[%clk 0:00:10.8]} 42. Qc8+ {[%clk 0:00:08.3]} 42... Kg7 {[%clk
0:00:11.6]} 43. Qb7+ {[%clk 0:00:09.1]} 43... Kg8 {[%clk 0:00:12.7]} 44. h5
{[%clk 0:00:07.8]} 44... Qb5 {[%clk 0:00:02.8]} 45. Qc8+ {[%clk 0:00:07.2]}
45... Kg7 {[%clk 0:00:04.1]} 46. Qc7+ {[%clk 0:00:07.9]} 46... Kg8 {[%clk
0:00:05.6]} 47. h6 {[%clk 0:00:07.4]} 47... Qd5+ {[%clk 0:00:05.6]} 48. Kh2
{[%clk 0:00:08.3]} 48... Qf7 {[%clk 0:00:06.6]} 49. Qd8+ {[%clk 0:00:08.3]}
49... Qf8 {[%clk 0:00:07.6]} 50. Qd5+ {[%clk 0:00:09.1]} 50... Qf7 {[%clk
0:00:09.1]} 51. Qa8+ {[%clk 0:00:08.8]} 51... Qf8 {[%clk 0:00:10.4]} 52. Qd5+
{[%clk 0:00:08.6]} 52... Qf7 {[%clk 0:00:11.4]} 53. Qe5 {[%clk 0:00:06]} 53...
g5 {[%clk 0:00:09]} 54. Qb8+ {[%clk 0:00:05.7]} 54... Qf8 {[%clk 0:00:09.9]} 55.
Qb6 {[%clk 0:00:06.3]} 55... f4 {[%clk 0:00:07.7]} 56. Qe6+ {[%clk 0:00:06.1]}
56... Qf7 {[%clk 0:00:08.4]} 57. Qxa6 {[%clk 0:00:06.4]} 57... fxg3+ {[%clk
0:00:08.9]} 58. Kxg3 {[%clk 0:00:06.4]} 58... Qf4+ {[%clk 0:00:09.9]} 59. Kg2
{[%clk 0:00:07.5]} 59... Qg4+ {[%clk 0:00:10.8]} 60. Kh2 {[%clk 0:00:07.5]}
60... Qh4+ {[%clk 0:00:12]} 61. Kg1 {[%clk 0:00:08.5]} 61... Qg4+ {[%clk
0:00:13.4]} 62. Kf1 {[%clk 0:00:06.9]} 62... Qd1+ {[%clk 0:00:14.4]} 63. Kg2
{[%clk 0:00:08.4]} 63... Qg4+ {[%clk 0:00:15.4]} 64. Kh1 {[%clk 0:00:08.3]}
64... Qh4+ {[%clk 0:00:16.6]} 65. Kg1 {[%clk 0:00:09.7]} 65... Qg4+ {[%clk
0:00:18]} 66. Kh2 {[%clk 0:00:11.2]} 66... Qh4+ {[%clk 0:00:19.1]} 67. Kg2
{[%clk 0:00:12.5]} 67... Qg4+ {[%clk 0:00:20.4]} 68. Kf1 {[%clk 0:00:13.8]}
68... Qd1+ {[%clk 0:00:21.5]} 69. Kg2 {[%clk 0:00:15.1]} 69... Qg4+ {[%clk
0:00:22.1]} 70. Kf1 {[%clk 0:00:16]} 70... Qd1+ {[%clk 0:00:23]} 71. Kg2 {[%clk
0:00:17.3]} 71... Qg4+ {[%clk 0:00:24]} 1/2-1/2

[Event "*** Titled Tuesday 3|2 Blitz"]
[Site "Chess.com"]
[Date "2015.11.03"]
[Round "2"]
[White "MMSANCHEZ"]
[Black "ZEN-22"]
[Result "0-1"]
[WhiteElo "2307"]
[BlackElo "2167"]
[TimeControl "180+2"]
[EndTime "17:15:46 PST"]
[Termination "ZEN-22 won by resignation"]

1. d4 {[%clk 0:03:01.9]} 1... d6 {[%clk 0:03:00.9]} 2. Nf3 {[%clk 0:03:02.3]}
2... Nf6 {[%clk 0:03:01]} 3. c4 {[%clk 0:03:01.9]} 3... Nbd7 {[%clk 0:03:01.7]}
4. Nc3 {[%clk 0:03:02.7]} 4... e5 {[%clk 0:03:02.5]} 5. e4 {[%clk 0:03:01.5]}
5... g6 {[%clk 0:02:59]} 6. h3 {[%clk 0:02:59.4]} 6... Bg7 {[%clk 0:02:59]} 7.
d5 {[%clk 0:02:58.6]} 7... O-O {[%clk 0:02:59.6]} 8. Be3 {[%clk 0:02:58.9]} 8...
Nh5 {[%clk 0:02:59.6]} 9. g3 {[%clk 0:02:56.5]} 9... h6 {[%clk 0:02:51.9]} 10.
Bg2 {[%clk 0:02:54.7]} 10... f5 {[%clk 0:02:52.5]} 11. exf5 {[%clk 0:02:55.3]}
11... gxf5 {[%clk 0:02:53.3]} 12. Nh4 {[%clk 0:02:51.2]} 12... Nf4 {[%clk
0:02:36.9]} 13. O-O {[%clk 0:02:27.8]} 13... Nxg2 {[%clk 0:02:36.9]} 14. Nxg2
{[%clk 0:02:26.5]} 14... f4 {[%clk 0:02:36]} 15. gxf4 {[%clk 0:02:26.8]} 15...
exf4 {[%clk 0:02:37.3]} 16. Bxf4 {[%clk 0:02:26.5]} 16... Ne5 {[%clk 0:02:37.2]}
17. b3 {[%clk 0:02:14.5]} 17... Bxh3 {[%clk 0:02:27.1]} 18. f3 {[%clk
0:02:15.7]} 18... Bxg2 {[%clk 0:02:25.5]} 19. Kxg2 {[%clk 0:02:16.7]} 19... Rxf4
{[%clk 0:02:25.8]} 20. Ne4 {[%clk 0:02:12.7]} 20... Nxf3 {[%clk 0:02:18.4]} 21.
Rxf3 {[%clk 0:02:11.2]} 21... Rxe4 {[%clk 0:02:18.8]} 22. Qd3 {[%clk 0:02:07.1]}
22... Rg4+ {[%clk 0:02:16.7]} 23. Kf2 {[%clk 0:02:06.2]} 23... Bxa1 {[%clk
0:02:15.9]} 24. Qf5 {[%clk 0:02:06]} 24... Qg5 {[%clk 0:02:11.6]} 25. Qe6+
{[%clk 0:02:05.7]} 25... Kh8 {[%clk 0:02:11.7]} 26. Rf7 {[%clk 0:02:03.4]} 26...
Rf4+ {[%clk 0:02:11.2]} 27. Ke2 {[%clk 0:02:02.2]} 27... Rxf7 {[%clk 0:02:11.5]}
28. Qxf7 {[%clk 0:02:03.2]} 28... Rg8 {[%clk 0:02:09.4]} 29. Qxc7 {[%clk
0:02:01.9]} 29... Qe5+ {[%clk 0:02:09.7]} 30. Kd3 {[%clk 0:02:01.7]} 30... Rg3+
{[%clk 0:02:10.6]} 31. Kc2 {[%clk 0:02:02.7]} 31... Qc3+ {[%clk 0:02:10.5]} 32.
Kd1 {[%clk 0:02:02.2]} 32... Rg1+ {[%clk 0:02:10.7]} 33. Ke2 {[%clk 0:02:03.5]}
33... Rg2+ {[%clk 0:02:11.5]} 34. Kf1 {[%clk 0:02:04.8]} 34... Qf3+ {[%clk
0:02:12.6]} 0-1

[Event "*** Titled Tuesday 3|2 Blitz"]
[Site "Chess.com"]
[Date "2015.11.03"]
[Round "2"]
[White "AlexanderL"]
[Black "SerGo055"]
[Result "0-1"]
[WhiteElo "2553"]
[BlackElo "2418"]
[TimeControl "180+2"]
[EndTime "17:17:14 PST"]
[Termination "SerGo055 won by checkmate"]

1. d4 {[%clk 0:03:01.9]} 1... d6 {[%clk 0:02:59.8]} 2. e4 {[%clk 0:03:02.2]}
2... e6 {[%clk 0:02:45.2]} 3. Nc3 {[%clk 0:02:57.5]} 3... g6 {[%clk 0:02:46.1]}
4. h4 {[%clk 0:02:53.3]} 4... h6 {[%clk 0:02:45.6]} 5. h5 {[%clk 0:02:52]} 5...
g5 {[%clk 0:02:46.4]} 6. f4 {[%clk 0:02:53.3]} 6... gxf4 {[%clk 0:02:38.2]} 7.
Bxf4 {[%clk 0:02:53.6]} 7... Nc6 {[%clk 0:02:40.1]} 8. Nf3 {[%clk 0:02:53.8]}
8... Bg7 {[%clk 0:02:35.4]} 9. d5 {[%clk 0:02:53.7]} 9... Ne5 {[%clk 0:02:32.4]}
10. Nxe5 {[%clk 0:02:54]} 10... Bxe5 {[%clk 0:02:29.6]} 11. Bxe5 {[%clk
0:02:53.8]} 11... dxe5 {[%clk 0:02:30.8]} 12. Bb5+ {[%clk 0:02:50.7]} 12... Kf8
{[%clk 0:02:15.2]} 13. O-O {[%clk 0:02:40.9]} 13... Qg5 {[%clk 0:02:15.2]} 14.
Qf3 {[%clk 0:02:38.8]} 14... Rh7 {[%clk 0:02:16]} 15. Rad1 {[%clk 0:02:37.5]}
15... a6 {[%clk 0:02:03.2]} 16. Bc4 {[%clk 0:02:38.2]} 16... exd5 {[%clk
0:02:03.6]} 17. Bxd5 {[%clk 0:02:32.5]} 17... Bg4 {[%clk 0:02:04.1]} 18. Qf2
{[%clk 0:02:11]} 18... Bxd1 {[%clk 0:02:04.3]} 19. Nxd1 {[%clk 0:02:12]} 19...
Kg7 {[%clk 0:01:36.5]} 20. Bxb7 {[%clk 0:01:43.5]} 20... Rd8 {[%clk 0:01:36.8]}
21. Qxf7+ {[%clk 0:01:31.4]} 21... Kh8 {[%clk 0:01:37.8]} 22. Qf3 {[%clk
0:01:32.4]} 22... Rd2 {[%clk 0:01:36.1]} 23. Ne3 {[%clk 0:01:32.2]} 23... Rg7
{[%clk 0:01:27.5]} 24. Bxa6 {[%clk 0:01:00.5]} 24... Qxe3+ {[%clk 0:01:22.7]}
25. Qxe3 {[%clk 0:00:57]} 25... Rgxg2+ {[%clk 0:01:23]} 26. Kh1 {[%clk
0:00:57.7]} 26... Rh2+ {[%clk 0:01:24.2]} 27. Kg1 {[%clk 0:00:58.4]} 27... Rdg2#
{[%clk 0:01:25.8]} 0-1

[Event "*** Titled Tuesday 3|2 Blitz"]
[Site "Chess.com"]
[Date "2015.11.03"]
[Round "2"]
[White "spirals5"]
[Black "Anton_Demchenko"]
[Result "1/2-1/2"]
[WhiteElo "2209"]
[BlackElo "2638"]
[TimeControl "180+2"]
[EndTime "17:19:02 PST"]
[Termination "Game drawn by repetition"]

1. e4 {[%clk 0:03:01.9]} 1... e5 {[%clk 0:03:00.8]} 2. Nf3 {[%clk 0:03:02.6]}
2... Nc6 {[%clk 0:03:02.7]} 3. Bb5 {[%clk 0:03:02.1]} 3... a6 {[%clk 0:03:03.5]}
4. Ba4 {[%clk 0:03:03]} 4... d6 {[%clk 0:03:04.6]} 5. O-O {[%clk 0:03:03.3]}
5... Bd7 {[%clk 0:03:05.4]} 6. c3 {[%clk 0:03:03.6]} 6... g6 {[%clk 0:03:06.2]}
7. d4 {[%clk 0:03:04.4]} 7... Bg7 {[%clk 0:03:07.9]} 8. Re1 {[%clk 0:03:02.9]}
8... Nge7 {[%clk 0:03:08.1]} 9. dxe5 {[%clk 0:03:03.7]} 9... dxe5 {[%clk
0:03:08.7]} 10. Be3 {[%clk 0:02:59.9]} 10... O-O {[%clk 0:03:09]} 11. Nbd2
{[%clk 0:03:00.5]} 11... b6 {[%clk 0:03:09.9]} 12. Nf1 {[%clk 0:02:57.7]} 12...
Qe8 {[%clk 0:03:10.2]} 13. Ng3 {[%clk 0:02:56.6]} 13... Kh8 {[%clk 0:03:05.7]}
14. Bc2 {[%clk 0:02:55.9]} 14... f6 {[%clk 0:03:03.7]} 15. Qd2 {[%clk
0:02:55.6]} 15... Rd8 {[%clk 0:02:59.4]} 16. Bh6 {[%clk 0:02:55.9]} 16... Bg4
{[%clk 0:02:57.9]} 17. Bxg7+ {[%clk 0:02:56.8]} 17... Kxg7 {[%clk 0:02:59.8]}
18. Qe3 {[%clk 0:02:57.3]} 18... Na5 {[%clk 0:02:59]} 19. b3 {[%clk 0:02:56.6]}
19... Nb7 {[%clk 0:02:56.3]} 20. h3 {[%clk 0:02:57]} 20... Be6 {[%clk
0:02:56.6]} 21. Rad1 {[%clk 0:02:57]} 21... Nd6 {[%clk 0:02:57.1]} 22. Bb1
{[%clk 0:02:49.6]} 22... a5 {[%clk 0:02:58.2]} 23. Rd2 {[%clk 0:02:48.6]} 23...
a4 {[%clk 0:02:56.8]} 24. c4 {[%clk 0:02:47.6]} 24... axb3 {[%clk 0:02:44.6]}
25. axb3 {[%clk 0:02:48]} 25... Nb7 {[%clk 0:02:46.3]} 26. Red1 {[%clk 0:02:47]}
26... Rxd2 {[%clk 0:02:47.3]} 27. Qxd2 {[%clk 0:02:46]} 27... c5 {[%clk
0:02:46.5]} 28. Ne2 {[%clk 0:02:38.6]} 28... Nc6 {[%clk 0:02:47.3]} 29. Nc3
{[%clk 0:02:39.4]} 29... Nd4 {[%clk 0:02:45.6]} 30. Nxd4 {[%clk 0:02:38.9]}
30... exd4 {[%clk 0:02:33.1]} 31. Nd5 {[%clk 0:02:39.8]} 31... Qc6 {[%clk
0:02:25.9]} 32. Bd3 {[%clk 0:02:38.5]} 32... Ra8 {[%clk 0:02:23.3]} 33. Qf4
{[%clk 0:02:34.6]} 33... Bxd5 {[%clk 0:02:09.6]} 34. exd5 {[%clk 0:02:35]} 34...
Qd6 {[%clk 0:02:10.8]} 35. Qe4 {[%clk 0:02:11.2]} 35... f5 {[%clk 0:01:54.4]}
36. Qe2 {[%clk 0:02:10.4]} 36... Qf6 {[%clk 0:01:21.2]} 37. Re1 {[%clk
0:02:07.6]} 37... Nd6 {[%clk 0:01:22]} 38. Qe7+ {[%clk 0:02:02]} 38... Qxe7
{[%clk 0:01:11.8]} 39. Rxe7+ {[%clk 0:02:01.9]} 39... Kh6 {[%clk 0:01:13.7]} 40.
Re6 {[%clk 0:02:01.9]} 40... Rd8 {[%clk 0:01:13.8]} 41. g3 {[%clk 0:01:58.2]}
41... Kg7 {[%clk 0:01:14.9]} 42. Kg2 {[%clk 0:01:57.4]} 42... Kf7 {[%clk
0:01:16.1]} 43. h4 {[%clk 0:01:57.8]} 43... Rd7 {[%clk 0:01:08.8]} 44. Kf1
{[%clk 0:01:57.6]} 44... Nc8 {[%clk 0:01:04.9]} 45. Rc6 {[%clk 0:01:57.9]} 45...
Rd8 {[%clk 0:01:03.7]} 46. Rc7+ {[%clk 0:01:54.9]} 46... Kg8 {[%clk 0:01:04.5]}
47. Rc6 {[%clk 0:01:54.2]} 47... Kf8 {[%clk 0:01:00]} 48. Ke1 {[%clk 0:01:51.8]}
48... Kf7 {[%clk 0:00:54.5]} 49. Kd2 {[%clk 0:01:52.2]} 49... Kf8 {[%clk
0:00:51.7]} 50. Rc7 {[%clk 0:01:40.1]} 50... Kg8 {[%clk 0:00:51.8]} 51. Rc6
{[%clk 0:01:40.4]} 51... Kf7 {[%clk 0:00:52.4]} 52. Rc7+ {[%clk 0:01:40.6]}
52... Kg8 {[%clk 0:00:53.2]} 53. Rc6 {[%clk 0:01:41.5]} 53... Kf7 {[%clk
0:00:49.7]} 54. Rc7+ {[%clk 0:01:42.2]} 54... Kg8 {[%clk 0:00:51.1]} 1/2-1/2

[Event "*** Titled Tuesday 3|2 Blitz"]
[Site "Chess.com"]
[Date "2015.11.03"]
[Round "2"]
[White "GrigorGrigorov"]
[Black "AdrianaNikolova"]
[Result "1/2-1/2"]
[WhiteElo "2406"]
[BlackElo "2209"]
[TimeControl "180+2"]
[EndTime "17:19:43 PST"]
[Termination "Game drawn by repetition"]

1. d4 {[%clk 0:03:01.9]} 1... d5 {[%clk 0:03:00.6]} 2. Nf3 {[%clk 0:03:02]} 2...
Nf6 {[%clk 0:03:01.7]} 3. c4 {[%clk 0:03:03]} 3... c6 {[%clk 0:03:03]} 4. Nbd2
{[%clk 0:03:03.1]} 4... Bf5 {[%clk 0:03:00.3]} 5. Nh4 {[%clk 0:03:03.8]} 5...
Be4 {[%clk 0:03:01.2]} 6. e3 {[%clk 0:03:03.4]} 6... e6 {[%clk 0:03:01.9]} 7.
Be2 {[%clk 0:03:03.4]} 7... Nbd7 {[%clk 0:03:02.1]} 8. Nxe4 {[%clk 0:03:01]}
8... Nxe4 {[%clk 0:03:00.4]} 9. Nf3 {[%clk 0:03:01.4]} 9... Bb4+ {[%clk
0:03:01.4]} 10. Nd2 {[%clk 0:03:02.2]} 10... Qa5 {[%clk 0:03:03]} 11. a3 {[%clk
0:03:02]} 11... Bxd2+ {[%clk 0:02:58.3]} 12. Bxd2 {[%clk 0:03:02.5]} 12... Nxd2
{[%clk 0:02:56.5]} 13. Qxd2 {[%clk 0:03:03.6]} 13... Qxd2+ {[%clk 0:02:58.1]}
14. Kxd2 {[%clk 0:03:04.9]} 14... dxc4 {[%clk 0:02:50.4]} 15. Bxc4 {[%clk
0:03:05]} 15... c5 {[%clk 0:02:45.4]} 16. dxc5 {[%clk 0:03:03.6]} 16... Nxc5
{[%clk 0:02:47.3]} 17. Ke2 {[%clk 0:03:03.4]} 17... Ke7 {[%clk 0:02:38.9]} 18.
Rac1 {[%clk 0:03:02.7]} 18... Rac8 {[%clk 0:02:38.8]} 19. Rc2 {[%clk 0:03:01.6]}
19... Ne4 {[%clk 0:02:34.9]} 20. Rhc1 {[%clk 0:03:00]} 20... Nd6 {[%clk
0:02:32.5]} 21. Bd3 {[%clk 0:02:55.8]} 21... Rxc2+ {[%clk 0:02:33.5]} 22. Rxc2
{[%clk 0:02:57]} 22... Rc8 {[%clk 0:02:34.8]} 23. Rxc8 {[%clk 0:02:56.6]} 23...
Nxc8 {[%clk 0:02:36.7]} 24. f4 {[%clk 0:02:52.8]} 24... h6 {[%clk 0:02:05.9]}
25. g4 {[%clk 0:02:53.5]} 25... Nb6 {[%clk 0:02:01]} 26. h4 {[%clk 0:02:43.2]}
26... Na4 {[%clk 0:01:50.4]} 27. b3 {[%clk 0:02:41.8]} 27... Nc5 {[%clk
0:01:47.1]} 28. Bc2 {[%clk 0:02:41.8]} 28... f6 {[%clk 0:01:45.8]} 29. b4 {[%clk
0:02:40.1]} 29... Nd7 {[%clk 0:01:45.1]} 30. Be4 {[%clk 0:02:40.8]} 30... b6
{[%clk 0:01:43.3]} 31. Kd3 {[%clk 0:02:41.4]} 31... Kd6 {[%clk 0:01:40.5]} 32.
Kc4 {[%clk 0:02:35.9]} 32... e5 {[%clk 0:01:17.5]} 33. h5 {[%clk 0:02:33.8]}
33... exf4 {[%clk 0:01:18.3]} 34. exf4 {[%clk 0:02:34.3]} 34... Nf8 {[%clk
0:01:13.8]} 35. Bf5 {[%clk 0:02:34.8]} 35... a6 {[%clk 0:01:07.1]} 36. a4 {[%clk
0:02:32.7]} 36... Ne6 {[%clk 0:01:07.4]} 37. Bxe6 {[%clk 0:02:27.1]} 37... Kxe6
{[%clk 0:01:09.3]} 38. a5 {[%clk 0:02:19.6]} 38... bxa5 {[%clk 0:01:09.2]} 39.
bxa5 {[%clk 0:02:20.6]} 39... Kd6 {[%clk 0:01:11.1]} 40. Kd4 {[%clk 0:02:19.2]}
40... Kc6 {[%clk 0:01:10.3]} 41. Ke4 {[%clk 0:01:52.4]} 41... Kd6 {[%clk
0:00:37]} 42. g5 {[%clk 0:01:47.1]} 42... fxg5 {[%clk 0:00:35.1]} 43. fxg5
{[%clk 0:01:47.7]} 43... hxg5 {[%clk 0:00:30.9]} 44. Kf5 {[%clk 0:01:48.7]}
44... Kd7 {[%clk 0:00:20.3]} 45. Kxg5 {[%clk 0:01:47.9]} 45... Ke7 {[%clk
0:00:21.8]} 46. Kf5 {[%clk 0:01:45.9]} 46... Kf7 {[%clk 0:00:23]} 47. Ke5 {[%clk
0:01:44.6]} 47... Ke7 {[%clk 0:00:24.4]} 48. Kd5 {[%clk 0:01:45.8]} 48... Kd7
{[%clk 0:00:25.9]} 49. Kc5 {[%clk 0:01:46.7]} 49... Kc7 {[%clk 0:00:27.3]} 50.
Kd5 {[%clk 0:01:48.4]} 50... Kd7 {[%clk 0:00:28.6]} 51. Ke5 {[%clk 0:01:50]}
51... Ke7 {[%clk 0:00:30]} 52. Kf5 {[%clk 0:01:51.7]} 52... Kf7 {[%clk
0:00:31.5]} 53. Kg5 {[%clk 0:01:53.4]} 53... Ke7 {[%clk 0:00:32.7]} 54. Kg6
{[%clk 0:01:55]} 54... Kf8 {[%clk 0:00:33.5]} 55. Kg5 {[%clk 0:01:50.3]} 55...
Ke7 {[%clk 0:00:34.1]} 56. Kg6 {[%clk 0:01:48.4]} 56... Kf8 {[%clk 0:00:34.9]}
57. Kg5 {[%clk 0:01:38.8]} 57... Ke7 {[%clk 0:00:35.7]} 58. Kf5 {[%clk
0:01:39.4]} 58... Kf7 {[%clk 0:00:37]} 59. Kg5 {[%clk 0:01:39.5]} 59... Ke7
{[%clk 0:00:37.9]} 1/2-1/2